bitfinex-derivatives/quotes_BTCF0:USTF0_20241210
["timestamp","ask_amount","ask_price","bid_price","bid_amount"]
[1733840130943,0.47400677,97800.0,97782.0,0.003]
[1733840131138,0.3608,97789.0,97782.0,0.004]
[1733840131335,0.1101,97788.0,97786.0,0.051108]
[1733840133746,0.12280458,97788.0,97786.0,0.051108]
[1733840133942,0.12280458,97788.0,97786.0,0.052108]
[1733840134241,0.12280458,97788.0,97786.0,0.001]
[1733840134445,0.1119,97787.0,97786.0,0.001]
[1733840136151,0.17391258,97788.0,97786.0,0.052108]
[1733840136152,0.01270458,97788.0,97786.0,0.052108]
[1733840136351,0.3608,97789.0,97788.0,0.051108]
[1733840136851,0.10060079,97800.0,97799.0,0.051102]
[1733840137046,0.10008078,97800.0,97799.0,0.051102]
[1733840137439,0.10008078,97800.0,97793.0,0.051105]
[1733840137642,0.3608,97794.0,97793.0,0.051105]
[1733840137850,0.3608,97794.0,97775.0,0.051114]
[1733840138044,0.3608,97794.0,97762.0,0.3608]
[1733840138045,0.15070152,97787.0,97762.0,0.3608]
[1733840138851,0.15070152,97787.0,97775.0,0.006]
[1733840139453,0.1134,97786.0,97775.0,0.006]
[1733840139756,0.3608,97784.0,97779.0,0.051112]
[1733840139947,0.3608,97784.0,97775.0,0.006]
[1733840140143,0.3608,97784.0,97775.0,0.057114]
[1733840140350,0.1121,97783.0,97779.0,0.051112]
[1733840140645,0.1121,97783.0,97781.0,0.051111]
[1733840142150,0.1121,97783.0,97781.0,0.054111]
[1733840142350,0.1121,97783.0,97781.0,0.055111]
[1733840142872,0.1121,97783.0,97781.0,0.004]
[1733840143450,0.1121,97783.0,97781.0,0.055111]
[1733840143859,0.1121,97783.0,97781.0,0.054111]
[1733840144056,0.1121,97783.0,97781.0,0.055111]
[1733840144654,0.1121,97783.0,97781.0,0.051111]
[1733840144957,0.1121,97783.0,97781.0,0.003]
[1733840145161,0.1121,97783.0,97773.0,0.00153397]
[1733840145361,0.411915,97774.0,97773.0,0.00153397]
[1733840145552,0.3608,97774.0,97773.0,0.00153397]
[1733840148167,0.1121,97783.0,97773.0,0.051115]
[1733840148372,0.3608,97784.0,97783.0,0.05111]
[1733840148664,0.37338913,97784.0,97783.0,0.05111]
[1733840148861,0.37338913,97784.0,97773.0,0.053115]
[1733840148862,0.37338913,97784.0,97773.0,0.002]
[1733840149065,0.3608,97774.0,97773.0,0.053115]
[1733840149959,0.12126744,97792.0,97783.0,0.05111]
[1733840150160,0.36140001,97794.0,97793.0,0.051105]
[1733840150358,0.00060001,97794.0,97793.0,0.051105]
[1733840150769,0.10060079,97800.0,97799.0,0.051102]
[1733840150976,0.10008078,97800.0,97799.0,0.051102]
[1733840151758,0.10008078,97800.0,97799.0,0.171402]
[1733840151971,0.10008078,97800.0,97799.0,0.290802]
[1733840152472,0.10508078,97800.0,97799.0,0.290802]
[1733840152769,0.10508078,97800.0,97799.0,0.59434144]
[1733840152971,0.10508078,97800.0,97799.0,0.290802]
[1733840153270,0.15070152,97820.0,97814.0,0.051094]
[1733840153770,0.05109,97822.0,97814.0,0.051094]
[1733840154264,0.34375945,97815.0,97814.0,0.051094]
[1733840154771,0.35075945,97815.0,97814.0,0.052094]
[1733840155162,0.00711945,97815.0,97814.0,0.052094]
[1733840155474,0.0009,97832.0,97831.0,0.051085]
[1733840156369,0.0009988,97832.0,97831.0,0.051085]
[1733840156561,0.3436,97851.0,97831.0,0.051085]
[1733840156562,0.3436,97851.0,97850.0,0.051075]
[1733840157468,0.34369446,97851.0,97850.0,0.051075]
[1733840158274,0.35469446,97851.0,97850.0,0.053075]
[1733840161883,0.01109446,97851.0,97850.0,0.053075]
[1733840162073,0.3608,97873.0,97872.0,0.051064]
[1733840162266,0.1142,97877.0,97874.0,0.051063]
[1733840162469,0.1142,97877.0,97872.0,0.051064]
[1733840162470,0.00060001,97878.0,97876.0,0.051062]
[1733840162967,0.3608,97889.0,97888.0,0.051055]
[1733840163368,0.36091955,97889.0,97888.0,0.051055]
[1733840164475,0.00011955,97889.0,97888.0,0.051055]
[1733840165566,0.00611955,97889.0,97888.0,0.052055]
[1733840166173,0.00211955,97889.0,97888.0,0.051055]
[1733840166371,0.00211955,97889.0,97864.0,0.01228315]
[1733840166372,0.00411955,97889.0,97864.0,0.01228315]
[1733840166574,0.00411955,97889.0,97849.0,0.3608]
[1733840166575,0.3608,97868.0,97849.0,0.3608]
[1733840166879,0.3608,97860.0,97836.0,0.001533]
[1733840167067,0.3608,97840.0,97838.0,0.00511048]
[1733840167267,0.3608,97840.0,97838.0,0.05619148]
[1733840167268,0.17685483,97840.0,97838.0,0.05619148]
[1733840167467,0.17685483,97840.0,97839.0,0.00511043]
[1733840167865,0.17698563,97840.0,97839.0,0.00511043]
[1733840168280,0.18934568,97840.0,97839.0,0.00511043]
[1733840168577,0.17698563,97840.0,97839.0,0.00511043]
[1733840169269,0.17698563,97840.0,97839.0,0.002]
[1733840169776,0.17698563,97840.0,97839.0,0.004]
[1733840170380,0.17698563,97840.0,97839.0,0.007]
[1733840170874,0.3609308,97840.0,97839.0,0.007]
[1733840171266,0.3609308,97840.0,97839.0,0.005]
[1733840171467,0.3609308,97840.0,97839.0,0.008]
[1733840171671,0.051087,97827.0,97819.0,0.00153349]
[1733840171871,0.051091,97820.0,97819.0,0.00153349]
[1733840172073,0.3608,97823.0,97819.0,0.00153349]
[1733840172379,0.051091,97820.0,97819.0,0.00153349]
[1733840172980,0.051091,97820.0,97785.0,0.3608]
[1733840172981,0.051096,97810.0,97785.0,0.3608]
[1733840173172,0.3608,97810.0,97772.0,0.1184]
[1733840173376,0.15070152,97782.0,97772.0,0.1184]
[1733840173679,0.15070152,97782.0,97781.0,0.051111]
[1733840173868,0.15070152,97791.0,97772.0,0.1184]
[1733840174176,0.15070152,97790.0,97788.0,0.051107]
[1733840174371,0.3608,97794.0,97779.0,0.3608]
[1733840174574,0.51150152,97810.0,97806.0,0.051098]
[1733840174874,0.51150152,97810.0,97798.0,0.3608]
[1733840175081,0.51150152,97810.0,97803.0,0.051099]
[1733840175270,0.51150152,97810.0,97798.0,0.3608]
[1733840175468,0.51150152,97810.0,97809.0,0.051097]
[1733840175670,0.36132001,97815.0,97803.0,0.0511]
[1733840175874,0.051095,97813.0,97803.0,0.0511]
[1733840176075,0.051095,97813.0,97790.0,0.3608]
[1733840176076,0.3608,97815.0,97790.0,0.3608]
[1733840176270,0.3608,97815.0,97799.0,0.051102]
[1733840176271,0.15070152,97800.0,97799.0,0.051102]
[1733840176474,0.15070152,97809.0,97805.0,0.051099]
[1733840176674,0.3608,97815.0,97806.0,0.051098]
[1733840176675,0.51150152,97815.0,97806.0,0.051098]
[1733840176877,0.51150152,97815.0,97813.0,0.051094]
[1733840176878,0.51250152,97815.0,97813.0,0.051094]
[1733840177072,0.3618,97815.0,97813.0,0.051094]
[1733840177272,0.3618,97815.0,97804.0,0.051099]
[1733840177474,0.3618,97815.0,97805.0,0.051098]
[1733840177475,0.15070152,97814.0,97805.0,0.051098]
[1733840177678,0.15070152,97814.0,97799.0,0.3688]
[1733840177890,0.15070152,97814.0,97800.0,0.051101]
[1733840178071,0.15070152,97814.0,97799.0,0.3688]
[1733840178072,0.051097,97808.0,97799.0,0.008]
[1733840178277,0.0511,97803.0,97799.0,0.008]
[1733840178884,0.3608,97804.0,97799.0,0.051101]
[1733840179587,0.3608,97804.0,97799.0,0.058101]
[1733840179975,0.3608,97804.0,97800.0,0.051101]
[1733840180376,0.3608,97804.0,97799.0,0.007]
[1733840180574,0.3608,97804.0,97802.0,0.0511]
[1733840181079,0.3608,97804.0,97799.0,0.007]
[1733840181386,0.3608,97804.0,97802.0,0.0511]
[1733840181884,0.15070152,97814.0,97813.0,0.051094]
[1733840182078,0.15070152,97830.0,97813.0,0.411894]
[1733840182390,0.15070152,97840.0,97819.0,0.051091]
[1733840182587,0.15070152,97840.0,97819.0,0.411891]
[1733840182773,0.34352,97848.0,97826.0,0.051088]
[1733840183087,0.34352,97848.0,97845.0,0.051077]
[1733840183279,0.34352,97848.0,97835.0,0.3608]
[1733840183472,0.34352,97848.0,97846.0,0.051077]
[1733840183678,9.181e-05,97847.0,97846.0,0.051077]
[1733840184479,9.181e-05,97847.0,97821.0,0.3608]
[1733840184674,9.181e-05,97847.0,97822.0,0.00319436]
[1733840184675,0.15070152,97831.0,97822.0,0.00319436]
[1733840184879,0.15070152,97831.0,97829.0,0.051086]
[1733840185381,0.12126744,97846.0,97829.0,0.051086]
[1733840185382,0.07942488,97880.0,97835.0,0.003]
[1733840185579,0.3608,97891.0,97869.0,0.051065]
[1733840185580,0.051057,97885.0,97869.0,0.051065]
[1733840185781,0.15070152,97890.0,97862.0,0.3608]
[1733840185782,0.0496937,97884.0,97862.0,0.3608]
[1733840185975,0.18329196,97878.0,97873.0,0.051063]
[1733840186178,0.3608,97884.0,97868.0,0.3608]
[1733840186378,0.3608,97884.0,97882.0,0.051058]
[1733840186379,0.00010195,97883.0,97882.0,0.051058]
[1733840186588,0.00010195,97883.0,97875.0,0.051062]
[1733840186888,0.00010195,97883.0,97879.0,0.05106]
[1733840187270,0.04980202,97883.0,97879.0,0.05106]
[1733840187475,0.04980202,97883.0,97881.0,0.051059]
[1733840187476,0.00010195,97883.0,97881.0,0.051059]
[1733840187902,0.3608,97907.0,97884.0,0.051057]
[1733840187903,0.18329196,97897.0,97884.0,0.051057]
[1733840188186,0.18329196,97904.0,97896.0,0.3608]
[1733840188377,0.0496853,97899.0,97896.0,0.3608]
[1733840188887,0.18329196,97917.0,97898.0,0.05105]
[1733840189082,0.00010325,97899.0,97898.0,0.05105]
[1733840189783,0.00610325,97899.0,97898.0,0.05105]
[1733840190283,0.00710325,97899.0,97898.0,0.05205]
[1733840191386,0.05815325,97899.0,97898.0,0.001]
[1733840191592,0.05815325,97899.0,97882.0,0.3608]
[1733840191593,0.00710325,97899.0,97889.0,0.15070152]
[1733840191885,0.00710325,97899.0,97898.0,0.41185]
[1733840192089,2.5e-07,97900.0,97898.0,0.41185]
[1733840192387,0.15070152,97930.0,97898.0,0.41185]
[1733840192388,0.18329196,97933.0,97898.0,0.6608]
[1733840192580,0.18329196,97937.0,97928.0,0.3608]
[1733840192781,0.3608,97935.0,97928.0,0.051034]
[1733840192986,0.04967466,97934.0,97909.0,0.3608]
[1733840193282,0.15070152,97920.0,97912.0,0.051042]
[1733840193594,0.18329196,97917.0,97912.0,0.051042]
[1733840193784,0.15070152,97920.0,97912.0,0.051042]
[1733840194087,0.15070152,97920.0,97914.0,0.051041]
[1733840194490,0.04968864,97919.0,97916.0,0.05104]
[1733840194691,0.15070152,97920.0,97909.0,0.411844]
[1733840194989,0.15070152,97920.0,97911.0,0.051043]
[1733840195186,0.15070152,97920.0,97909.0,0.3608]
[1733840195187,0.18248096,97916.0,97909.0,0.3608]
[1733840195490,0.15470152,97920.0,97916.0,0.051041]
[1733840195682,0.004,97920.0,97919.0,0.411839]
[1733840195990,0.005,97920.0,97919.0,0.411839]
[1733840196490,0.005,97920.0,97919.0,0.051039]
[1733840196689,0.3608,97923.0,97913.0,0.051042]
[1733840196882,0.18252085,97918.0,97909.0,0.3608]
[1733840197089,0.15070152,97919.0,97909.0,0.3608]
[1733840197288,0.15670152,97920.0,97909.0,0.3608]
[1733840197483,0.23219723,97919.0,97909.0,0.3608]
[1733840197682,0.15670152,97920.0,97909.0,0.3608]
[1733840197889,0.15670152,97920.0,97911.0,0.051043]
[1733840198691,0.15370152,97920.0,97911.0,0.051043]
[1733840198893,0.18252085,97918.0,97911.0,0.051043]
[1733840199092,0.0496786,97917.0,97911.0,0.051043]
[1733840199286,0.0496786,97916.0,97911.0,0.051043]
[1733840199487,0.0496786,97915.0,97911.0,0.051043]
[1733840199682,0.15470152,97920.0,97909.0,0.3608]
[1733840199889,0.051045,97908.0,97898.0,0.3608]
[1733840200300,0.15070152,97909.0,97891.0,0.00153217]
[1733840200301,0.3608,97903.0,97891.0,0.00153217]
[1733840200594,0.3608,97893.0,97891.0,0.00153217]
[1733840201996,0.051053,97892.0,97891.0,0.00153217]
[1733840202296,0.051053,97892.0,97877.0,0.3608]
[1733840202297,0.051054,97891.0,97877.0,0.3608]
[1733840202484,0.15070152,97887.0,97877.0,0.3608]
[1733840202799,0.15070152,97887.0,97885.0,0.051057]
[1733840203090,0.1314,97892.0,97877.0,0.3608]
[1733840203492,0.15070152,97895.0,97893.0,0.051052]
[1733840203692,0.1264,97900.0,97896.0,0.051051]
[1733840203896,0.1264,97900.0,97889.0,0.051054]
[1733840204588,0.1264,97900.0,97877.0,0.009]
[1733840204589,0.1264,97900.0,97891.0,0.051053]
[1733840204896,9.492e-05,97902.0,97900.0,0.051049]
[1733840206591,9.492e-05,97902.0,97900.0,0.053049]
[1733840209497,0.11775659,97901.0,97900.0,0.053049]
[1733840209796,9.492e-05,97902.0,97900.0,0.052049]
[1733840209999,9.492e-05,97902.0,97900.0,0.053049]
[1733840210198,9.492e-05,97902.0,97900.0,0.002]
[1733840210589,0.3608,97901.0,97900.0,0.002]
[1733840210789,0.3608,97901.0,97886.0,0.3608]
[1733840210998,0.15070152,97896.0,97886.0,0.3608]
[1733840211591,0.15070152,97896.0,97887.0,0.18302028]
[1733840211792,0.411853,97893.0,97889.0,0.18302028]
[1733840212096,0.051054,97891.0,97885.0,0.18302028]
[1733840212296,0.051055,97889.0,97886.0,0.007]
[1733840212604,0.3608,97893.0,97879.0,0.24346973]
[1733840212789,0.3608,97880.0,97876.0,0.24346973]
[1733840212989,0.3608,97880.0,97878.0,0.05106]
[1733840213189,0.15070152,97886.0,97885.0,0.051057]
[1733840213397,0.3608,97893.0,97878.0,0.24399595]
[1733840213592,0.3608,97893.0,97886.0,0.004]
[1733840214398,0.051054,97892.0,97886.0,0.004]
[1733840214794,0.051054,97892.0,97886.0,0.24799595]
[1733840214997,0.3608,97893.0,97886.0,0.004]
[1733840215199,0.051055,97888.0,97886.0,0.001]
[1733840215402,0.3608,97893.0,97886.0,0.001]
[1733840215703,0.051056,97887.0,97886.0,0.001]
[1733840216002,0.051056,97887.0,97886.0,0.002]
[1733840216603,0.1298,97892.0,97864.0,0.24399595]
[1733840216901,0.3608,97873.0,97872.0,0.051064]
[1733840217694,0.15070152,97882.0,97876.0,0.051061]
[1733840218704,0.15070152,97882.0,97871.0,0.051064]
[1733840218890,0.15070152,97882.0,97858.0,0.1404324]
[1733840218891,0.051059,97880.0,97876.0,0.004]
[1733840219200,0.051061,97877.0,97876.0,0.004]
[1733840219502,0.051061,97877.0,97867.0,0.051066]
[1733840219800,0.051061,97877.0,97864.0,0.005]
[1733840219801,0.051067,97866.0,97864.0,0.005]
[1733840220098,0.541667,97865.0,97864.0,0.005]
[1733840220304,0.051071,97858.0,97857.0,0.00153255]
[1733840220805,0.70408,97863.0,97845.0,0.00010346]
[1733840220996,0.3608,97854.0,97846.0,0.00319437]
[1733840221194,0.3608,97854.0,97845.0,0.00010346]
[1733840221396,0.051076,97849.0,97845.0,0.00010346]
[1733840221793,0.3608,97854.0,97848.0,0.051076]
[1733840221994,0.3608,97854.0,97853.0,0.051074]
[1733840222195,0.15070152,97856.0,97855.0,0.051073]
[1733840222499,0.34328,97863.0,97845.0,0.00910346]
[1733840222806,0.51150152,97855.0,97845.0,0.00910346]
[1733840223014,0.051077,97846.0,97845.0,0.00010346]
[1733840224508,0.002,97854.0,97845.0,0.00010346]
[1733840224509,0.001,97854.0,97845.0,0.00010346]
[1733840224718,0.51150152,97855.0,97845.0,0.01710346]
[1733840224919,0.51150152,97855.0,97854.0,0.051073]
[1733840225119,0.51150152,97855.0,97845.0,0.01710346]
[1733840225120,0.34528,97863.0,97862.0,0.051069]
[1733840225426,0.001,97863.0,97862.0,0.051069]
[1733840225922,0.15070152,97872.0,97867.0,0.051066]
[1733840226318,0.15070152,97872.0,97871.0,0.051064]
[1733840226518,9.146e-05,97876.0,97875.0,0.051062]
[1733840227025,9.146e-05,97876.0,97875.0,0.05425518]
[1733840227731,9.146e-05,97876.0,97875.0,0.31024163]
[1733840228228,9.146e-05,97876.0,97875.0,0.06624568]
[1733840228429,9.146e-05,97876.0,97875.0,0.06724568]
[1733840228830,9.146e-05,97876.0,97875.0,0.07024568]
[1733840229326,0.00109146,97876.0,97875.0,0.07824568]
[1733840229529,0.00209146,97876.0,97875.0,0.08124568]
[1733840229723,0.00209146,97876.0,97875.0,0.06925518]
[1733840229921,0.05315346,97876.0,97875.0,0.06925518]
[1733840230326,0.05315346,97876.0,97875.0,0.015]
[1733840231627,0.00209146,97876.0,97875.0,0.066062]
[1733840231826,0.00209146,97876.0,97875.0,0.057062]
[1733840232027,0.00109146,97876.0,97875.0,0.061062]
[1733840232434,0.00109146,97876.0,97875.0,0.421862]
[1733840233234,0.3608,97904.0,97903.0,0.051047]
[1733840233421,0.3608,97904.0,97883.0,0.05259058]
[1733840233422,0.65653175,97920.0,97894.0,0.3608]
[1733840233625,0.15070152,97904.0,97885.0,0.3608]
[1733840233825,0.15070152,97904.0,97883.0,0.00153258]
[1733840233826,0.15070152,97895.0,97892.0,0.051053]
[1733840234030,8.381e-05,97894.0,97892.0,0.051053]
[1733840234429,8.381e-05,97894.0,97886.0,0.051056]
[1733840234629,0.3608,97887.0,97883.0,0.00153258]
[1733840234826,0.051057,97884.0,97883.0,0.00153258]
[1733840235941,0.052057,97884.0,97883.0,0.008]
[1733840236130,0.052057,97884.0,97883.0,0.012]
[1733840236326,0.051065,97870.0,97856.0,0.3608]
[1733840236533,0.051069,97862.0,97857.0,0.00319299]
[1733840236734,0.051069,97862.0,97855.0,0.00153292]
[1733840236735,0.3608,97858.0,97855.0,0.00153292]
[1733840236938,0.3608,97858.0,97856.0,0.00319329]
[1733840237133,0.3608,97858.0,97857.0,0.00319329]
[1733840237325,0.3608,97858.0,97855.0,0.00153292]
[1733840237937,9.799e-05,97861.0,97855.0,0.00153292]
[1733840238341,9.799e-05,97861.0,97860.0,0.05107]
[1733840238533,9.799e-05,97861.0,97860.0,0.05426358]
[1733840239035,0.34428,97884.0,97883.0,0.051058]
[1733840239238,0.001,97884.0,97883.0,0.051058]
[1733840239631,0.15070152,97890.0,97887.0,0.051056]
[1733840239839,0.15070152,97890.0,97888.0,0.051055]
[1733840240134,0.3608,97896.0,97888.0,0.051055]
[1733840240451,0.28450662,97935.0,97888.0,0.051055]
[1733840240452,0.01221183,97942.0,97924.0,0.051036]
[1733840240629,0.15070152,97970.0,97941.0,0.7216]
[1733840240830,0.15070152,97970.0,97949.0,0.3608]
[1733840240831,0.051021,97955.0,97949.0,0.3608]
[1733840241235,7.407e-05,97954.0,97949.0,0.3608]
[1733840241833,7.407e-05,97954.0,97950.0,0.051023]
[1733840242029,7.407e-05,97954.0,97949.0,0.3608]
[1733840245338,0.01229465,97954.0,97933.0,0.3608]
[1733840245533,0.23147465,97951.0,97933.0,0.3608]
[1733840245740,0.051029,97939.0,97933.0,0.3608]
[1733840245934,0.1249,97938.0,97933.0,0.3608]
[1733840246441,1.5,97934.0,97933.0,0.3608]
[1733840246945,0.23147465,97943.0,97933.0,0.411832]
[1733840247136,0.23147465,97943.0,97942.0,0.3608]
[1733840247440,1.5,97943.0,97942.0,0.3608]
[1733840248237,1.5,97943.0,97933.0,0.3608]
[1733840248438,0.051031,97936.0,97933.0,0.3618]
[1733840248941,0.23199466,97943.0,97933.0,0.3618]
[1733840249250,0.23147465,97943.0,97942.0,0.3608]
[1733840249551,1.551026,97945.0,97942.0,0.3608]
[1733840249942,0.01196947,97948.0,97942.0,0.3608]
[1733840250142,0.35717465,97952.0,97942.0,0.3608]
[1733840250344,0.051025,97946.0,97942.0,0.3608]
[1733840251447,0.051027,97943.0,97942.0,0.3608]
[1733840251949,0.36933066,97952.0,97933.0,0.3628]
[1733840252142,0.23147465,97943.0,97933.0,0.3628]
[1733840252743,0.05103,97938.0,97933.0,0.3608]
[1733840252950,0.23147465,97943.0,97933.0,0.3608]
[1733840252951,0.051031,97935.0,97933.0,0.3608]
[1733840253250,0.23147465,97943.0,97913.0,0.00012213]
[1733840253251,0.00010552,97934.0,97914.0,0.3608]
[1733840253453,0.23147465,97924.0,97914.0,0.3608]
[1733840253764,0.051039,97921.0,97914.0,0.3608]
[1733840254145,0.23147465,97924.0,97914.0,0.3608]
[1733840254447,0.23147465,97924.0,97914.0,0.3638]
[1733840254448,0.051037,97923.0,97914.0,0.3638]
[1733840255444,0.051038,97922.0,97914.0,0.3638]
[1733840255754,0.23147465,97924.0,97914.0,0.3638]
[1733840256059,0.23147465,97924.0,97914.0,0.3658]
[1733840256245,0.051041,97915.0,97914.0,0.3658]
[1733840256855,0.051041,97915.0,97914.0,0.3638]
[1733840257042,0.051041,97915.0,97914.0,0.3658]
[1733840257246,0.051039,97920.0,97914.0,0.3658]
[1733840257442,0.23147465,97924.0,97914.0,0.3658]
[1733840257644,0.34316,97926.0,97923.0,0.3608]
[1733840257844,0.23147465,97930.0,97929.0,0.051034]
[1733840258059,0.00010552,97934.0,97923.0,0.3608]
[1733840258060,0.00010552,97934.0,97924.0,0.3608]
[1733840258258,0.051019,97957.0,97945.0,0.051026]
[1733840258555,0.051019,97957.0,97933.0,0.3608]
[1733840258556,0.34316,97958.0,97952.0,0.3608]
[1733840259252,0.051021,97954.0,97952.0,0.3608]
[1733840259754,0.051021,97953.0,97952.0,0.3608]
[1733840259954,0.051025,97947.0,97945.0,0.001]
[1733840260456,0.00908934,97957.0,97945.0,0.001]
[1733840260457,0.051025,97946.0,97945.0,0.001]
[1733840260843,0.051025,97946.0,97942.0,0.3608]
[1733840261443,0.051025,97946.0,97945.0,0.002]
[1733840262051,0.051025,97946.0,97942.0,0.3638]
[1733840262553,0.64329665,97952.0,97945.0,0.001]
[1733840262854,0.28249665,97952.0,97945.0,0.003]
[1733840263159,0.051022,97952.0,97945.0,0.003]
[1733840263350,0.051024,97949.0,97945.0,0.002]
[1733840263551,0.15016052,97955.0,97945.0,0.002]
[1733840263748,8.934e-05,97957.0,97951.0,0.3608]
[1733840263945,8.934e-05,97957.0,97954.0,0.051021]
[1733840264151,8.934e-05,97957.0,97952.0,0.051022]
[1733840264955,8.934e-05,97957.0,97951.0,0.3608]
[1733840265152,0.00108934,97957.0,97956.0,0.05102]
[1733840265752,0.00208934,97957.0,97956.0,0.05102]
[1733840265957,0.00308934,97957.0,97956.0,0.05102]
[1733840267253,0.00408934,97957.0,97956.0,0.05102]
[1733840269566,0.00408934,97957.0,97956.0,0.05421072]
[1733840270153,0.051005,97985.0,97956.0,0.00319072]
[1733840270361,0.27148547,97990.0,97978.0,0.051008]
[1733840270559,0.27148547,97990.0,97981.0,0.411807]
[1733840270560,0.15016052,97988.0,97981.0,0.411807]
[1733840270761,0.051003,97988.0,97981.0,0.3608]
[1733840271262,0.00010478,97987.0,97981.0,0.3608]
[1733840271859,0.00010478,97987.0,97982.0,0.00319012]
[1733840272061,0.00010478,97987.0,97981.0,0.3608]
[1733840272062,0.00010478,97987.0,97981.0,0.3618]
[1733840272363,0.00010478,97987.0,97982.0,0.0031901]
[1733840272563,0.00010478,97987.0,97983.0,0.0031901]
[1733840272763,0.00010478,97987.0,97981.0,0.3618]
[1733840273058,0.02097867,97987.0,97982.0,0.00319009]
[1733840273256,0.02097867,97987.0,97984.0,0.051005]
[1733840273461,0.00710478,97987.0,97986.0,0.051004]
[1733840274154,0.01610478,97987.0,97986.0,0.051004]
[1733840274359,0.01610478,97987.0,97986.0,0.06276284]
[1733840274652,0.1,98000.0,97999.0,0.050997]
[1733840274853,0.1,98000.0,97999.0,0.411797]
[1733840275458,0.1,98000.0,97999.0,0.3608]
[1733840275656,0.1,98000.0,97983.0,0.3608]
[1733840275857,0.15016052,97993.0,97984.0,0.0031897]
[1733840276058,0.15016052,97993.0,97986.0,0.051004]
[1733840276257,0.10012274,98000.0,97998.0,0.050998]
[1733840276462,0.10012274,98000.0,97999.0,0.3608]
[1733840276861,0.10012274,98000.0,97991.0,0.3608]
[1733840277157,0.10712274,98000.0,97999.0,0.001]
[1733840277762,0.10712274,98000.0,97999.0,0.412797]
[1733840277960,0.10812274,98000.0,97999.0,0.412797]
[1733840279763,0.10812274,98000.0,97999.0,0.3618]
[1733840279963,0.11012274,98000.0,97999.0,0.3618]
[1733840282065,0.11012274,98000.0,97999.0,0.001]
[1733840282263,0.16111974,98000.0,97999.0,0.001]
[1733840283066,0.16111974,98000.0,97982.0,0.3608]
[1733840283067,0.051006,97983.0,97982.0,0.3608]
[1733840283262,0.051006,97983.0,97979.0,0.00153092]
[1733840283263,0.051007,97980.0,97979.0,0.00153092]
[1733840283665,0.051007,97980.0,97962.0,0.3608]
[1733840283666,0.051016,97963.0,97962.0,0.3608]
[1733840284174,0.3608,97968.0,97951.0,0.3608]
[1733840284384,0.6144,97968.0,97951.0,0.3608]
[1733840284678,0.6144,97968.0,97943.0,0.3608]
[1733840284679,0.3608,97960.0,97943.0,0.3608]
[1733840284979,0.15016052,97953.0,97943.0,0.3608]
[1733840285176,0.15016052,97953.0,97952.0,0.3608]
[1733840285379,0.4932,97968.0,97952.0,0.3608]
[1733840285380,0.051018,97960.0,97952.0,0.3608]
[1733840285670,0.15016052,97962.0,97951.0,0.009]
[1733840285671,0.051022,97953.0,97951.0,0.009]
[1733840285873,0.30032104,97962.0,97951.0,0.009]
[1733840286072,0.051019,97959.0,97947.0,0.051024]
[1733840286370,0.001,97960.0,97943.0,0.3698]
[1733840286371,0.001,97960.0,97948.0,0.051024]
[1733840286566,0.15016052,97958.0,97948.0,0.051024]
[1733840286764,0.15016052,97958.0,97949.0,0.051023]
[1733840287372,0.15016052,97958.0,97947.0,0.003]
[1733840287568,0.15016052,97958.0,97952.0,0.3608]
[1733840287876,0.15016052,97958.0,97953.0,0.051021]
[1733840288980,0.15116052,97958.0,97953.0,0.051021]
[1733840289190,0.15116052,97958.0,97952.0,0.3608]
[1733840290375,0.20217952,97958.0,97949.0,0.001]
[1733840290578,0.052019,97958.0,97945.0,0.051025]
[1733840290774,0.05102,97956.0,97944.0,0.3608]
[1733840290969,0.3608,97957.0,97944.0,0.3608]
[1733840291174,7.812e-05,97956.0,97944.0,0.3608]
[1733840291369,0.051024,97949.0,97944.0,0.3608]
[1733840291674,0.182121,97955.0,97949.0,0.001]
[1733840291982,0.051021,97953.0,97949.0,0.001]
[1733840292174,0.051023,97951.0,97949.0,0.001]
[1733840293473,0.051023,97950.0,97949.0,0.001]
[1733840293873,0.051027,97943.0,97942.0,0.00153147]
[1733840294283,0.051031,97934.0,97933.0,0.3608]
[1733840294670,0.1274,97942.0,97933.0,0.3608]
[1733840294875,0.15016052,97943.0,97942.0,0.051027]
[1733840295077,0.001,97951.0,97941.0,0.3608]
[1733840295078,0.00052001,97948.0,97947.0,0.051024]
[1733840295487,0.343,97958.0,97955.0,0.05102]
[1733840295682,0.343,97958.0,97955.0,0.41182]
[1733840295984,0.15016052,97970.0,97955.0,0.41182]
[1733840296183,0.15016052,97970.0,97955.0,0.41501053]
[1733840296879,0.15016052,97980.0,97955.0,0.41501053]
[1733840297180,0.051003,97989.0,97978.0,0.051008]
[1733840297480,0.34304,97994.0,97979.0,0.00319007]
[1733840297481,0.15016052,97988.0,97979.0,0.00319007]
[1733840297678,0.051014,97967.0,97962.0,0.1251]
[1733840297873,0.3608,97983.0,97960.0,0.3608]
[1733840297874,0.051015,97966.0,97960.0,0.3608]
[1733840298080,0.00010805,97965.0,97960.0,0.3608]
[1733840298680,0.051017,97962.0,97960.0,0.3608]
[1733840299079,0.00010805,97965.0,97960.0,0.3698]
[1733840300485,0.00010805,97965.0,97961.0,0.051017]
[1733840300987,0.00010805,97965.0,97960.0,0.3748]
[1733840301178,0.051016,97964.0,97960.0,0.3698]
[1733840301377,0.051016,97964.0,97960.0,0.3668]
[1733840301572,0.00010805,97965.0,97960.0,0.3668]
[1733840301773,0.00010805,97965.0,97960.0,0.36788]
[1733840301973,0.00010805,97965.0,97963.0,0.051016]
[1733840302182,0.00010805,97965.0,97960.0,0.37088]
[1733840302183,0.00010805,97965.0,97960.0,0.3698]
[1733840302586,0.051017,97963.0,97960.0,0.3638]
[1733840302788,0.00010805,97965.0,97960.0,0.3648]
[1733840303089,0.051017,97962.0,97960.0,0.3648]
[1733840303280,0.051017,97962.0,97960.0,0.3678]
[1733840303482,0.051017,97962.0,97960.0,0.007]
[1733840303681,0.3608,97961.0,97960.0,0.007]
[1733840303988,0.488,97961.0,97960.0,0.007]